[Event "CZE-ch U16 Girls 2023"]
[Site "Teplice"]
[Date "2023.03.11"]
[Round "1.1"]
[White "Zelbova, Lada"]
[Black "Archlebova, Stela"]
[Result "1-0"]
[ECO "C64"]
[WhiteElo "1822"]
[BlackElo "1360"]
[Annotator "NA RC COMBH"]
[PlyCount "53"]
[EventDate "2023.03.09"]
[EventType "swiss"]
[EventCountry "CZE"]
[SourceTitle "playchess.com"]
[Source "ChessBase"]
[SourceQuality "1"]
[TimeControl "40/5400+30:1800+30"]

1. e4 {[%emt 0:00:06]} e5 {[%emt 0:00:09]} 2. Nf3 {[%emt 0:00:14]} Nc6 {[%emt 0:00:30]} 3. Bb5 {[%emt 0:00:12]} Bc5 {[%emt 0:01:00]} 4. O-O {[%emt 0:01:13]} Qe7 {[%emt 0:05:56]} 5. c3 {[%emt 0:02:48]} Nf6 {[%emt 0:04:31]} 6. d4 {[%emt 0:04:50]} exd4 {[%emt 0:00:49]} 7. cxd4 {[%emt 0:00:35]} Bb6 {[%emt 0:00:45]} 8. e5 {[%emt 0:10:38]} Nd5 {[%emt 0:05:38]} 9. Bc4 {[%emt 0:12:15]} Ndb4 {[%emt 0:04:13]} 10. d5 {[%emt 0:07:17]} Na5 {[%emt 0:00:44]} 11. Be2 {[%emt 0:02:31]} d6 {[%emt 0:00:39]} 12. Qa4+ {[%emt 0:03:28]} Nbc6 {[%emt 0:11:42]} 13. dxc6 {[%emt 0:02:30]} Nxc6 {[%emt 0:00:30]} 14. Bb5 {[%emt 0:05:46]} Bd7 {[%emt 0:00:12]} 15. exd6 {[%emt 0:01:52]} Qxd6 {[%emt 0:00:17]} 16. Bf4 {[%emt 0:02:15]} Qc5 {[%emt 0:04:53]} 17. Be3 {[%emt 0:02:40]} Qf5 {[%emt 0:03:26]} 18. Bxb6 {[%emt 0:00:37]} cxb6 {[%emt 0:00:14]} 19. Re1+ {[%emt 0:00:21]} Kf8 {[%emt 0:00:37]} 20. Nc3 {[%emt 0:01:33]} Qg6 {[%emt 0:04:18]} 21. Nd5 {[%emt 0:02:09]} Rd8 {[%emt 0:02:53]} 22. Qa3+ {[%emt 0:01:02]} Kg8 {[%emt 0:00:34]} 23. Bxc6 {[%emt 0:00:29]} Qc2 {[%emt 0:04:47]} 24. Ne7+ {[%emt 0:00:20]} Kf8 {[%emt 0:00:08]} 25. Ng6+ {[%emt 0:00:08]} Kg8 {[%emt 0:00:19]} 26. Qf8+ {[%emt 0:00:21]} Rxf8 {[%emt 0:00:12]} 27. Ne7# 1-0

[Event "CZE-ch U16 Girls 2023"]
[Site "Teplice"]
[Date "2023.03.11"]
[Round "1.2"]
[White "Vacekova, Anita"]
[Black "Sikorova, Jana"]
[Result "1-0"]
[ECO "B42"]
[WhiteElo "1350"]
[BlackElo "1735"]
[Annotator "NA RC COMBH"]
[PlyCount "49"]
[EventDate "2023.03.09"]
[EventType "swiss"]
[EventCountry "CZE"]
[SourceTitle "playchess.com"]
[Source "ChessBase"]
[SourceQuality "1"]
[TimeControl "40/5400+30:1800+30"]

1. e4 {[%emt 0:00:06]} c5 {[%emt 0:00:17]} 2. Nf3 {[%emt 0:00:11]} e6 {[%emt 0:00:13]} 3. d4 {[%emt 0:00:11]} cxd4 {[%emt 0:00:24]} 4. Nxd4 {[%emt 0:00:05]} a6 {[%emt 0:00:08]} 5. Bd3 {[%emt 0:01:15]} b5 {[%emt 0:00:58]} 6. O-O {[%emt 0:02:47]} Qb6 {[%emt 0:02:33]} 7. Nb3 {[%emt 0:11:54]} Qc7 {[%emt 0:01:55]} 8. Be3 {[%emt 0:13:04]} Bb7 {[%emt 0:02:45]} 9. N1d2 {[%emt 0:04:24]} Nf6 {[%emt 0:01:48]} 10. Qe2 {[%emt 0:07:02]} d6 {[%emt 0:04:48]} 11. a4 {[%emt 0:07:22]} b4 {[%emt 0:05:18]} 12. f3 {[%emt 0:08:20]} Nbd7 {[%emt 0:04:12]} 13. a5 {[%emt 0:04:18]} Ne5 {[%emt 0:03:32]} 14. Rfc1 {[%emt 0:03:56]} Be7 {[%emt 0:02:25]} 15. c3 {[%emt 0:02:00]} Nxd3 {[%emt 0:06:13]} 16. Qxd3 {[%emt 0:00:20]} bxc3 {[%emt 0:10:10]} 17. Rxc3 {[%emt 0:00:46]} Qd7 {[%emt 0:00:12]} 18. Rac1 {[%emt 0:03:54]} Bd8 {[%emt 0:17:30]} 19. Nc4 {[%emt 0:03:28]} d5 {[%emt 0:01:41]} 20. Nb6 {[%emt 0:01:26]} Bxb6 {[%emt 0:00:39]} 21. axb6 {[%emt 0:01:37]} Qa4 {[%emt 0:18:21]} 22. Nc5 {[%emt 0:07:07]} dxe4 {[%emt 0:04:30]} 23. Qd6 {[%emt 0:01:45]} Qc6 {[%emt 0:05:18]} 24. Nxb7 {[%emt 0:00:58]} Qxb7 {[%emt 0:01:43]} 25. Rc7 {[%emt 0:00:42]} 1-0

[Event "CZE-ch U16 Girls 2023"]
[Site "Teplice"]
[Date "2023.03.11"]
[Round "1.3"]
[White "Havelkova, Beata"]
[Black "Dominikova, Denisa"]
[Result "1-0"]
[ECO "C96"]
[WhiteElo "1670"]
[BlackElo "1301"]
[Annotator "NA RC COMBH"]
[PlyCount "61"]
[EventDate "2023.03.09"]
[EventType "swiss"]
[EventCountry "CZE"]
[SourceTitle "playchess.com"]
[Source "ChessBase"]
[SourceQuality "1"]
[TimeControl "40/5400+30:1800+30"]

1. e4 {[%emt 0:00:03]} e5 {[%emt 0:00:07]} 2. Nf3 {[%emt 0:00:05]} Nc6 {[%emt 0:00:16]} 3. Bb5 {[%emt 0:00:06]} a6 {[%emt 0:00:22]} 4. Ba4 {[%emt 0:00:07]} Nf6 {[%emt 0:00:32]} 5. O-O {[%emt 0:00:09]} Be7 {[%emt 0:00:45]} 6. Re1 {[%emt 0:00:24]} b5 {[%emt 0:00:26]} 7. Bb3 {[%emt 0:00:08]} d6 {[%emt 0:00:33]} 8. c3 {[%emt 0:00:07]} O-O {[%emt 0:00:59]} 9. h3 {[%emt 0:00:06]} Na5 {[%emt 0:01:18]} 10. Bc2 {[%emt 0:00:25]} c5 {[%emt 0:01:20]} 11. d3 {[%emt 0:03:14]} Bd7 {[%emt 0:05:14]} 12. Nbd2 {[%emt 0:01:27]} Qc7 {[%emt 0:03:37]} 13. Nf1 {[%emt 0:02:36]} Nc6 {[%emt 0:05:53]} 14. Ne3 {[%emt 0:04:54]} h6 {[%emt 0:10:26]} 15. Nh2 {[%emt 0:22:41]} Rfe8 {[%emt 0:06:18]} 16. Nf5 {[%emt 0:08:51]} Bxf5 {[%emt 0:17:41]} 17. exf5 {[%emt 0:00:10]} a5 {[%emt 0:03:10]} 18. Ng4 {[%emt 0:03:03]} Rac8 {[%emt 0:08:47]} 19. a4 {[%emt 0:02:04]} b4 {[%emt 0:03:34]} 20. Re3 {[%emt 0:03:05]} Nd5 {[%emt 0:04:00]} 21. Rg3 {[%emt 0:01:07]} Bh4 {[%emt 0:03:24]} 22. Nxh6+ {[%emt 0:00:21]} Kh7 {[%emt 0:03:41]} 23. Rg4 {[%emt 0:02:02]} Bf6 {[%emt 0:00:56]} 24. Bb3 {[%emt 0:01:37]} Nxc3 {[%emt 0:03:10]} 25. bxc3 {[%emt 0:17:03]} gxh6 {[%emt 0:01:06]} 26. Qd2 {[%emt 0:00:25]} Bg5 {[%emt 0:06:39]} 27. Rxg5 {[%emt 0:00:57]} hxg5 {[%emt 0:00:57]} 28. Qxg5 {[%emt 0:00:08]} Qe7 {[%emt 0:02:31]} 29. f6 {[%emt 0:01:12]} Qf8 {[%emt 0:00:29]} 30. Qh5+ {[%emt 0:00:14]} Kg8 {[%emt 0:00:25]} 31. Bh6 {[%emt 0:00:07]} 1-0

[Event "CZE-ch U16 Girls 2023"]
[Site "Teplice"]
[Date "2023.03.11"]
[Round "1.4"]
[White "Cinkova, Vicky"]
[Black "Hetfleischova, Elen"]
[Result "1-0"]
[ECO "B34"]
[WhiteElo "1285"]
[BlackElo "1623"]
[Annotator "NA RC COMBH"]
[PlyCount "97"]
[EventDate "2023.03.09"]
[EventType "swiss"]
[EventCountry "CZE"]
[SourceTitle "playchess.com"]
[Source "ChessBase"]
[SourceQuality "1"]
[TimeControl "40/5400+30:1800+30"]

1. e4 {[%emt 0:00:08]} c5 {[%emt 0:00:14]} 2. Nf3 {[%emt 0:00:16]} Nc6 {[%emt 0:00:11]} 3. d4 {[%emt 0:00:10]} cxd4 {[%emt 0:00:08]} 4. Nxd4 {[%emt 0:00:08]} g6 {[%emt 0:00:17]} 5. Nc3 {[%emt 0:00:20]} Bg7 {[%emt 0:00:09]} 6. Be3 {[%emt 0:00:15]} Nf6 {[%emt 0:01:15]} 7. Be2 {[%emt 0:00:48]} O-O {[%emt 0:01:01]} 8. Nb3 {[%emt 0:02:32]} a6 {[%emt 0:05:44]} 9. O-O {[%emt 0:02:54]} b5 {[%emt 0:03:57]} 10. a3 {[%emt 0:08:22]} d6 {[%emt 0:07:22]} 11. f4 {[%emt 0:02:51]} Qc7 {[%emt 0:11:03]} 12. Bf3 {[%emt 0:03:25]} Bb7 {[%emt 0:05:26]} 13. Nd5 {[%emt 0:05:44]} Nxd5 {[%emt 0:03:12]} 14. exd5 {[%emt 0:00:14]} Na5 {[%emt 0:02:13]} 15. Nxa5 {[%emt 0:17:33]} Qxa5 {[%emt 0:00:15]} 16. c3 {[%emt 0:08:13]} Rad8 {[%emt 0:08:10]} 17. Kh1 {[%emt 0:03:05]} Qc7 {[%emt 0:05:15]} 18. Re1 {[%emt 0:05:11]} Bc8 {[%emt 0:14:33]} 19. Re2 {[%emt 0:08:57]} e5 {[%emt 0:06:40]} 20. dxe6 {[%emt 0:11:04]} fxe6 {[%emt 0:02:10]} 21. Qb3 {[%emt 0:04:22]} Kh8 {[%emt 0:06:56]} 22. a4 {[%emt 0:03:07]} Qc4 {[%emt 0:02:07]} 23. Qxc4 {[%emt 0:00:10]} bxc4 {[%emt 0:00:06]} 24. Bb6 {[%emt 0:07:15]} Rde8 {[%emt 0:00:14]} 25. Bc6 {[%emt 0:00:26]} Re7 {[%emt 0:00:11]} 26. Rd1 {[%emt 0:00:26]} Rxf4 {[%emt 0:01:16]} 27. Rxd6 {[%emt 0:00:26]} Rf1+ {[%emt 0:01:11]} 28. Bg1 {[%emt 0:00:05]} Bf8 {[%emt 0:04:41]} 29. Rd8 {[%emt 0:01:31]} Rc7 {[%emt 0:01:07]} 30. Rf2 {[%emt 0:01:38]} Rxf2 {[%emt 0:01:15]} 31. Bxf2 {[%emt 0:00:04]} Kg7 {[%emt 0:01:23]} 32. Bf3 {[%emt 0:01:04]} Be7 {[%emt 0:00:45]} 33. Bd4+ {[%emt 0:01:04]} Kh6 {[%emt 0:01:27]} 34. Rh8 {[%emt 0:01:31]} Bb7 {[%emt 0:02:02]} 35. Bxb7 {[%emt 0:00:36]} Rxb7 {[%emt 0:00:08]} 36. Ra8 {[%emt 0:00:12]} Rxb2 {[%emt 0:00:17]} 37. g3 {[%emt 0:00:54]} Kg5 {[%emt 0:02:30]} 38. Rxa6 {[%emt 0:00:18]} Re2 {[%emt 0:00:32]} 39. Ra7 {[%emt 0:00:20]} Ba3 {[%emt 0:00:41]} 40. Rxh7 {[%emt 0:00:41]} Kg4 {[%emt 0:01:41]} 41. Rh4+ {[%emt 0:31:03]} Kg5 {[%emt 0:30:43]} 42. a5 {[%emt 0:00:00]} e5 {[%emt 0:00:00]} 43. Bg1 {[%emt 0:00:00]} e4 {[%emt 0:00:00]} 44. a6 {[%emt 0:00:00]} Re1 {[%emt 0:00:00]} 45. Kg2 {[%emt 0:00:00]} e3 {[%emt 0:00:00]} 46. a7 {[%emt 0:00:00]} e2 {[%emt 0:00:00]} 47. Kf2 {[%emt 0:00:00]} Ra1 {[%emt 0:00:00]} 48. Kxe2 {[%emt 0:00:00]} Bb2 {[%emt 0:00:00]} 49. Rxc4 {[%emt 0:00:00]} 1-0

[Event "CZE-ch U16 Girls 2023"]
[Site "Teplice"]
[Date "2023.03.11"]
[Round "1.5"]
[White "Seda, Michaela"]
[Black "Stavova, Marketa"]
[Result "1-0"]
[ECO "C60"]
[WhiteElo "1610"]
[BlackElo "1284"]
[Annotator "NA RC COMBH"]
[PlyCount "63"]
[EventDate "2023.03.09"]
[EventType "swiss"]
[EventCountry "CZE"]
[SourceTitle "playchess.com"]
[Source "ChessBase"]
[SourceQuality "1"]
[TimeControl "40/5400+30:1800+30"]

1. e4 {[%emt 0:00:03]} e5 {[%emt 0:00:12]} 2. Nf3 {[%emt 0:00:04]} Nc6 {[%emt 0:00:16]} 3. Bb5 {[%emt 0:00:05]} Nge7 {[%emt 0:00:37]} 4. O-O {[%emt 0:00:58]} a6 {[%emt 0:00:45]} 5. Ba4 {[%emt 0:00:39]} g6 {[%emt 0:00:47]} 6. Nc3 {[%emt 0:01:30]} Bg7 {[%emt 0:00:52]} 7. d3 {[%emt 0:01:41]} O-O {[%emt 0:01:06]} 8. Bg5 {[%emt 0:01:50]} f6 {[%emt 0:01:48]} 9. Bb3+ {[%emt 0:01:00]} Kh8 {[%emt 0:00:21]} 10. Be3 {[%emt 0:00:44]} d6 {[%emt 0:01:10]} 11. Qd2 {[%emt 0:01:22]} Bg4 {[%emt 0:02:08]} 12. Bh6 {[%emt 0:01:19]} Qd7 {[%emt 0:02:11]} 13. Bxg7+ {[%emt 0:00:53]} Kxg7 {[%emt 0:00:08]} 14. Ne1 {[%emt 0:04:07]} Nd4 {[%emt 0:03:08]} 15. f3 {[%emt 0:04:53]} Nxb3 {[%emt 0:03:15]} 16. axb3 {[%emt 0:00:06]} Be6 {[%emt 0:00:14]} 17. d4 {[%emt 0:00:55]} exd4 {[%emt 0:01:12]} 18. Qxd4 {[%emt 0:00:07]} Nc6 {[%emt 0:00:18]} 19. Qf2 {[%emt 0:01:24]} Ne5 {[%emt 0:01:49]} 20. f4 {[%emt 0:01:45]} Ng4 {[%emt 0:02:01]} 21. Qg3 {[%emt 0:01:34]} f5 {[%emt 0:01:33]} 22. h3 {[%emt 0:02:02]} Nf6 {[%emt 0:02:40]} 23. e5 {[%emt 0:01:35]} dxe5 {[%emt 0:00:56]} 24. fxe5 {[%emt 0:05:08]} Nd5 {[%emt 0:03:16]} 25. Rd1 {[%emt 0:03:00]} Qc6 {[%emt 0:01:16]} 26. Nxd5 {[%emt 0:01:35]} Bxd5 {[%emt 0:00:12]} 27. Qc3 {[%emt 0:06:43]} Qxc3 {[%emt 0:03:38]} 28. bxc3 {[%emt 0:00:05]} Rad8 {[%emt 0:01:31]} 29. Nd3 {[%emt 0:02:21]} Rfe8 {[%emt 0:03:29]} 30. Rfe1 {[%emt 0:01:56]} Be4 {[%emt 0:02:11]} 31. Nc5 {[%emt 0:01:55]} Bxc2 {[%emt 0:02:26]} 32. Rxd8 {[%emt 0:00:54]} 1-0

[Event "CZE-ch U16 Girls 2023"]
[Site "Teplice"]
[Date "2023.03.11"]
[Round "1.6"]
[White "Mullerova, Karina Nela"]
[Black "Janouskova, Adela"]
[Result "0-1"]
[ECO "A80"]
[WhiteElo "1283"]
[BlackElo "1558"]
[Annotator "NA RC COMBH"]
[PlyCount "132"]
[EventDate "2023.03.09"]
[EventType "swiss"]
[EventCountry "CZE"]
[SourceTitle "playchess.com"]
[Source "ChessBase"]
[SourceQuality "1"]
[TimeControl "40/5400+30:1800+30"]

1. d4 {[%emt 0:00:09]} f5 {[%emt 0:00:13]} 2. Bf4 {[%emt 0:00:29]} Nf6 {[%emt 0:01:05]} 3. e3 {[%emt 0:00:20]} e6 {[%emt 0:00:44]} 4. c3 {[%emt 0:00:13]} Be7 {[%emt 0:00:35]} 5. Nf3 {[%emt 0:01:31]} O-O {[%emt 0:00:30]} 6. Bd3 {[%emt 0:00:49]} d6 {[%emt 0:01:02]} 7. h4 {[%emt 0:01:14]} Qe8 {[%emt 0:05:50]} 8. Nbd2 {[%emt 0:02:00]} h6 {[%emt 0:04:03]} 9. Qe2 {[%emt 0:09:19]} Nbd7 {[%emt 0:02:03]} 10. Bc4 {[%emt 0:10:01]} Bd8 {[%emt 0:04:43]} 11. Nh2 {[%emt 0:17:45]} Nb6 {[%emt 0:07:00]} 12. Bb3 {[%emt 0:01:04]} Nbd5 {[%emt 0:02:29]} 13. Qf3 {[%emt 0:04:08]} Nxf4 {[%emt 0:03:51]} 14. exf4 {[%emt 0:03:54]} Rb8 {[%emt 0:09:10]} 15. O-O {[%emt 0:07:29]} b6 {[%emt 0:03:11]} 16. Rfe1 {[%emt 0:02:37]} d5 {[%emt 0:06:23]} 17. Bc2 {[%emt 0:02:54]} Ne4 {[%emt 0:02:28]} 18. Nxe4 {[%emt 0:04:17]} fxe4 {[%emt 0:01:19]} 19. Qg3 {[%emt 0:01:05]} Qh5 {[%emt 0:01:53]} 20. Bd1 {[%emt 0:04:06]} Qxh4 {[%emt 0:02:32]} 21. Qxh4 {[%emt 0:00:21]} Bxh4 {[%emt 0:00:06]} 22. g3 {[%emt 0:00:17]} Be7 {[%emt 0:02:24]} 23. Be2 {[%emt 0:00:43]} c5 {[%emt 0:01:35]} 24. f3 {[%emt 0:03:06]} cxd4 {[%emt 0:03:05]} 25. cxd4 {[%emt 0:02:25]} Bf6 {[%emt 0:01:18]} 26. Rad1 {[%emt 0:01:37]} exf3 {[%emt 0:04:52]} 27. Bxf3 {[%emt 0:04:37]} g5 {[%emt 0:03:29]} 28. f5 {[%emt 0:04:02]} exf5 {[%emt 0:01:17]} 29. Bxd5+ {[%emt 0:00:14]} Kg7 {[%emt 0:00:45]} 30. Be6 {[%emt 0:04:27]} Bxe6 {[%emt 0:02:42]} 31. Rxe6 {[%emt 0:00:10]} Rfd8 {[%emt 0:01:27]} 32. Nf3 {[%emt 0:00:21]} Rd5 {[%emt 0:01:42]} 33. Ne5 {[%emt 0:02:13]} Rbd8 {[%emt 0:01:39]} 34. Nc6 {[%emt 0:00:22]} R8d7 {[%emt 0:01:34]} 35. Kg2 {[%emt 0:03:37]} Bxd4 {[%emt 0:03:46]} 36. Re7+ Rxe7 {[%emt 0:12:24]} 37. Nxe7 {[%emt 0:00:40]} Re5 {[%emt 0:00:12]} 38. Nxf5+ {[%emt 0:01:00]} Rxf5 {[%emt 0:00:10]} 39. Rxd4 {[%emt 0:00:03]} Rf7 {[%emt 0:02:11]} 40. g4 {[%emt 0:01:10]} Kf6 {[%emt 0:00:54]} 41. Rd6+ {[%emt 0:30:11]} Kg7 {[%emt 0:30:06]} 42. Rd4 {[%emt 0:00:17]} a5 {[%emt 0:00:00]} 43. a4 {[%emt 0:00:00]} Rf6 {[%emt 0:00:00]} 44. b4 {[%emt 0:00:00]} axb4 {[%emt 0:00:00]} 45. Rxb4 {[%emt 0:00:00]} Kg6 {[%emt 0:00:00]} 46. Kg3 {[%emt 0:00:00]} h5 {[%emt 0:00:00]} 47. gxh5+ {[%emt 0:00:00]} Kxh5 {[%emt 0:00:00]} 48. Rd4 {[%emt 0:00:00]} Rc6 {[%emt 0:00:00]} 49. Rb4 {[%emt 0:00:00]} Rc3+ {[%emt 0:00:00]} 50. Kg2 {[%emt 0:00:00]} Rc2+ {[%emt 0:00:00]} 51. Kg3 {[%emt 0:00:00]} Rc6 {[%emt 0:00:00]} 52. Rd4 {[%emt 0:00:00]} Rc3+ {[%emt 0:00:00]} 53. Kg2 {[%emt 0:00:00]} Rb3 {[%emt 0:00:00]} 54. Rd5 {[%emt 0:00:00]} Kh4 {[%emt 0:00:00]} 55. a5 {[%emt 0:00:00]} bxa5 {[%emt 0:00:00]} 56. Rxa5 {[%emt 0:00:00]} g4 {[%emt 0:00:00]} 57. Rf5 {[%emt 0:00:00]} Rb2+ {[%emt 0:00:00]} 58. Kh1 {[%emt 0:00:00]} Kg3 {[%emt 0:00:00]} 59. Rf1 {[%emt 0:00:00]} Kh3 {[%emt 0:00:00]} 60. Re1 {[%emt 0:00:00]} g3 {[%emt 0:00:00]} 61. Kg1 {[%emt 0:02:16]} Kg4 {[%emt 0:02:01]} 62. Rf1 {[%emt 0:00:45]} Rc2 {[%emt 0:02:11]} 63. Re1 {[%emt 0:00:38]} Kf3 {[%emt 0:02:02]} 64. Rf1+ {[%emt 0:00:12]} Rf2 {[%emt 0:00:54]} 65. Rxf2+ {[%emt 0:00:22]} gxf2+ {[%emt 0:00:06]} 66. Kf1 {[%emt 0:00:09]} Ke3 {[%emt 0:00:07]} 0-1

[Event "CZE-ch U16 Girls 2023"]
[Site "Teplice"]
[Date "2023.03.11"]
[Round "1.7"]
[White "Dudkova, Josefina"]
[Black "Sterikova, Marketa"]
[Result "1-0"]
[ECO "C28"]
[WhiteElo "1519"]
[BlackElo "1254"]
[Annotator "NA RC COMBH"]
[PlyCount "91"]
[EventDate "2023.03.09"]
[EventType "swiss"]
[EventCountry "CZE"]
[SourceTitle "playchess.com"]
[Source "ChessBase"]
[SourceQuality "1"]
[TimeControl "40/5400+30:1800+30"]

1. e4 {[%emt 0:00:03]} e5 {[%emt 0:00:20]} 2. Nc3 {[%emt 0:00:08]} Nc6 {[%emt 0:00:38]} 3. Bc4 {[%emt 0:00:07]} Nf6 {[%emt 0:00:27]} 4. d3 {[%emt 0:00:23]} Bc5 {[%emt 0:00:17]} 5. Bg5 {[%emt 0:01:00]} h6 {[%emt 0:02:55]} 6. Bh4 {[%emt 0:00:28]} Be7 {[%emt 0:02:35]} 7. Nge2 {[%emt 0:04:48]} d6 {[%emt 0:01:37]} 8. h3 {[%emt 0:01:23]} Bd7 {[%emt 0:00:27]} 9. O-O {[%emt 0:01:03]} Qc8 {[%emt 0:02:39]} 10. Kh2 {[%emt 0:09:22]} Ng4+ {[%emt 0:07:20]} 11. hxg4 {[%emt 0:02:34]} Bxh4 {[%emt 0:00:18]} 12. g3 {[%emt 0:06:36]} Bf6 {[%emt 0:00:39]} 13. f3 {[%emt 0:18:33]} h5 {[%emt 0:02:37]} 14. g5 {[%emt 0:02:16]} Bxg5 {[%emt 0:01:22]} 15. f4 {[%emt 0:01:40]} exf4 {[%emt 0:01:12]} 16. gxf4 {[%emt 0:02:44]} Be7 {[%emt 0:02:56]} 17. a3 {[%emt 0:07:01]} g6 {[%emt 0:08:02]} 18. Qe1 {[%emt 0:07:38]} Qd8 {[%emt 0:02:33]} 19. f5 {[%emt 0:09:29]} Bh4 {[%emt 0:01:51]} 20. Qd2 {[%emt 0:04:26]} g5 {[%emt 0:02:05]} 21. Nd5 {[%emt 0:01:50]} Ne5 {[%emt 0:02:03]} 22. Qc3 {[%emt 0:02:59]} c6 {[%emt 0:03:34]} 23. Ne3 {[%emt 0:01:14]} f6 {[%emt 0:03:43]} 24. Ng2 {[%emt 0:01:40]} Qe7 {[%emt 0:05:25]} 25. Nxh4 {[%emt 0:01:03]} gxh4 {[%emt 0:00:37]} 26. Nf4 {[%emt 0:01:30]} Rh7 {[%emt 0:04:24]} 27. Ng6 {[%emt 0:02:29]} Qg7 {[%emt 0:04:30]} 28. Nxh4 {[%emt 0:03:25]} Qg4 {[%emt 0:01:10]} 29. Qe1 {[%emt 0:01:25]} O-O-O {[%emt 0:01:42]} 30. Rg1 {[%emt 0:01:22]} Qf4+ {[%emt 0:01:51]} 31. Qg3 {[%emt 0:00:26]} Ng4+ {[%emt 0:02:22]} 32. Kh3 {[%emt 0:01:36]} Nf2+ {[%emt 0:00:31]} 33. Kh2 {[%emt 0:00:41]} Ng4+ {[%emt 0:00:15]} 34. Kh3 {[%emt 0:00:22]} Nf2+ {[%emt 0:00:11]} 35. Kg2 {[%emt 0:02:51]} Qxg3+ {[%emt 0:01:25]} 36. Kxg3 {[%emt 0:00:02]} Ng4 {[%emt 0:00:56]} 37. Ng6 {[%emt 0:00:10]} Be8 {[%emt 0:01:08]} 38. Nf4 {[%emt 0:00:33]} Bd7 {[%emt 0:03:29]} 39. Nxh5 {[%emt 0:01:32]} Rxh5 {[%emt 0:00:49]} 40. Kxg4 {[%emt 0:00:02]} Rdh8 {[%emt 0:01:18]} 41. Kf3 {[%emt 0:30:48]} Rh2 {[%emt 0:30:28]} 42. Bb3 {[%emt 0:00:53]} Be8 {[%emt 0:01:10]} 43. Rg3 {[%emt 0:00:00]} Bh5+ {[%emt 0:00:00]} 44. Ke3 {[%emt 0:00:00]} Re2+ {[%emt 0:00:00]} 45. Kd4 {[%emt 0:00:00]} Rh7 {[%emt 0:00:00]} 46. Rh1 1-0

[Event "CZE-ch U16 Girls 2023"]
[Site "Teplice"]
[Date "2023.03.11"]
[Round "1.8"]
[White "Hrbkova, Johana"]
[Black "Vavrinkova, Marie"]
[Result "0-1"]
[ECO "B07"]
[WhiteElo "1254"]
[BlackElo "1457"]
[Annotator "NA RC COMBH"]
[PlyCount "82"]
[EventDate "2023.03.09"]
[EventType "swiss"]
[EventCountry "CZE"]
[SourceTitle "playchess.com"]
[Source "ChessBase"]
[SourceQuality "1"]
[TimeControl "40/5400+30:1800+30"]

1. e4 {[%emt 0:00:02]} d6 {[%emt 0:00:05]} 2. d4 {[%emt 0:00:36]} Nf6 {[%emt 0:00:35]} 3. Nc3 {[%emt 0:01:03]} g6 {[%emt 0:00:29]} 4. Bd3 {[%emt 0:04:16]} Bg7 {[%emt 0:02:15]} 5. Nge2 {[%emt 0:01:00]} e5 {[%emt 0:05:50]} 6. f4 {[%emt 0:06:42]} exd4 {[%emt 0:04:38]} 7. Nxd4 {[%emt 0:00:39]} c6 {[%emt 0:03:34]} 8. Nf3 {[%emt 0:05:14]} Qb6 {[%emt 0:05:47]} 9. Bc4 {[%emt 0:03:23]} Qc5 {[%emt 0:08:28]} 10. Qd3 {[%emt 0:04:23]} Ng4 {[%emt 0:02:43]} 11. Rf1 {[%emt 0:04:24]} b5 {[%emt 0:03:03]} 12. Bb3 {[%emt 0:03:06]} a5 {[%emt 0:05:33]} 13. a4 {[%emt 0:04:22]} b4 {[%emt 0:04:08]} 14. Nd1 {[%emt 0:03:28]} Ba6 {[%emt 0:01:36]} 15. Qd2 {[%emt 0:06:30]} Bxf1 {[%emt 0:01:13]} 16. Kxf1 {[%emt 0:00:47]} O-O {[%emt 0:02:16]} 17. Qd3 {[%emt 0:02:50]} Qb6 {[%emt 0:04:57]} 18. h3 {[%emt 0:04:18]} Nf6 {[%emt 0:01:06]} 19. Be3 {[%emt 0:04:09]} Qc7 {[%emt 0:02:24]} 20. c4 {[%emt 0:03:58]} c5 {[%emt 0:01:38]} 21. Nf2 {[%emt 0:08:27]} Nc6 {[%emt 0:04:08]} 22. Re1 {[%emt 0:12:04]} Rfe8 {[%emt 0:03:11]} 23. Nd2 {[%emt 0:04:58]} Nh5 {[%emt 0:05:15]} 24. g4 {[%emt 0:02:13]} Nf6 {[%emt 0:02:07]} 25. Qe2 {[%emt 0:02:01]} Nd7 {[%emt 0:03:29]} 26. Nd3 {[%emt 0:01:11]} Nf8 {[%emt 0:02:16]} 27. Nf3 {[%emt 0:01:52]} Rxe4 {[%emt 0:01:02]} 28. Qf2 {[%emt 0:02:48]} Rae8 {[%emt 0:01:28]} 29. Bd1 {[%emt 0:03:00]} R4e7 {[%emt 0:02:55]} 30. Nd2 {[%emt 0:01:01]} Nd4 {[%emt 0:01:43]} 31. Nb3 {[%emt 0:00:43]} Nxb3 {[%emt 0:00:55]} 32. Bxb3 {[%emt 0:00:09]} Ne6 {[%emt 0:00:23]} 33. f5 {[%emt 0:00:48]} Nd4 {[%emt 0:01:25]} 34. f6 {[%emt 0:00:30]} Bxf6 {[%emt 0:00:31]} 35. Qxf6 {[%emt 0:00:10]} Rxe3 {[%emt 0:00:14]} 36. Rxe3 {[%emt 0:00:09]} Rxe3 {[%emt 0:00:13]} 37. Bd1 {[%emt 0:01:14]} Rxd3 38. Ke1 {[%emt 0:00:29]} Re3+ {[%emt 0:01:17]} 39. Kd2 {[%emt 0:00:30]} Qe7 {[%emt 0:00:32]} 40. Qf2 {[%emt 0:00:29]} Rxh3 {[%emt 0:01:35]} 41. Qg2 {[%emt 0:30:31]} Qe3# {[%emt 0:30:40]} 0-1